bitfinex-derivatives/quotes_BTCF0:USTF0_20241224
["timestamp","ask_amount","ask_price","bid_price","bid_amount"]
[1735070992656,0.3608,97563.0,97546.0,0.051282]
[1735070992864,0.3608,97563.0,97547.0,0.23350814]
[1735070993052,0.6415,97576.0,97553.0,0.3608]
[1735070993354,0.00153804,97590.0,97553.0,0.3608]
[1735070993355,0.00153804,97590.0,97578.0,0.051265]
[1735070993561,0.00153804,97590.0,97580.0,0.23350814]
[1735070994256,0.00153804,97590.0,97570.0,0.23350814]
[1735070994473,0.00153804,97590.0,97580.0,0.23350814]
[1735070995048,0.00153804,97590.0,97580.0,0.23450814]
[1735070995049,0.00753804,97590.0,97580.0,0.23450814]
[1735070995464,0.15300916,97591.0,97583.0,0.3608]
[1735070995852,0.1,97600.0,97583.0,0.3608]
[1735070996057,0.1,97600.0,97594.0,0.412057]
[1735070996260,0.1,97600.0,97594.0,0.3608]
[1735070996463,0.00153736,97626.0,97599.0,0.3608]
[1735070996762,0.00153736,97626.0,97622.0,0.3608]
[1735070998465,0.3608,97648.0,97622.0,0.3608]
[1735070998466,0.3608,97648.0,97628.0,0.051242]
[1735070998666,0.3608,97648.0,97639.0,0.3608]
[1735070999056,0.051232,97649.0,97639.0,0.3608]
[1735070999361,0.051234,97645.0,97622.0,0.3634]
[1735070999557,0.3608,97626.0,97622.0,0.002]
[1735070999862,0.412045,97623.0,97622.0,0.001]
[1735071000360,0.051247,97620.0,97601.0,0.051256]
[1735071000566,0.3608,97617.0,97598.0,0.36285689]
[1735071000763,0.051256,97602.0,97598.0,0.00153689]
[1735071000963,0.3608,97609.0,97598.0,0.00153689]
[1735071001563,0.3608,97609.0,97599.0,0.23350814]
[1735071001869,0.051254,97607.0,97598.0,0.00153689]
[1735071002170,0.051254,97606.0,97598.0,0.00153689]
[1735071002662,0.051254,97606.0,97598.0,0.00453689]
[1735071003165,0.051254,97606.0,97598.0,0.00153689]
[1735071003366,0.3608,97609.0,97598.0,0.00153689]
[1735071003563,0.0955,97616.0,97604.0,0.051255]
[1735071003768,0.0955,97616.0,97611.0,0.3608]
[1735071004361,0.0886,97625.0,97613.0,0.05125]
[1735071004669,0.002,97616.0,97615.0,0.051249]
[1735071005660,0.002,97616.0,97611.0,0.3608]
[1735071005871,0.002,97616.0,97598.0,0.00153689]
[1735071005872,0.3608,97612.0,97598.0,0.00153689]
[1735071006166,0.3608,97599.0,97598.0,0.00153689]
[1735071006959,0.051268,97579.0,97551.0,0.3608]
[1735071007261,0.3608,97577.0,97562.0,0.051277]
[1735071007468,0.3608,97577.0,97551.0,0.3608]
[1735071007469,0.3608,97577.0,97560.0,0.59430814]
[1735071007767,0.051263,97589.0,97570.0,0.051273]
[1735071007967,0.051263,97589.0,97573.0,0.051271]
[1735071008875,0.3608,97583.0,97568.0,0.3608]
[1735071009074,0.3608,97591.0,97573.0,0.051271]
[1735071009676,0.3608,97591.0,97568.0,0.3608]
[1735071009871,0.051268,97579.0,97562.0,0.051277]
[1735071010065,0.3608,97583.0,97560.0,0.23650814]
[1735071010371,0.3608,97583.0,97564.0,0.051276]
[1735071010573,0.3608,97575.0,97556.0,0.05128]
[1735071010869,0.3608,97575.0,97568.0,0.001]
[1735071011072,0.051272,97573.0,97568.0,0.001]
[1735071011459,0.051272,97573.0,97564.0,0.002]
[1735071012064,0.051272,97573.0,97562.0,0.002]
[1735071012460,0.3608,97575.0,97560.0,0.3608]
[1735071012668,0.051282,97553.0,97552.0,0.3608]
[1735071012964,0.051285,97548.0,97533.0,0.3608]
[1735071013167,0.051285,97548.0,97534.0,0.051292]
[1735071013859,0.3608,97555.0,97533.0,0.3608]
[1735071014059,0.3608,97555.0,97530.0,0.00010396]
[1735071014060,0.3608,97545.0,97530.0,0.00010396]
[1735071014264,0.35149323,97545.0,97539.0,0.003]
[1735071014464,0.051291,97535.0,97530.0,0.00010396]
[1735071015263,0.3608,97536.0,97530.0,0.00010396]
[1735071015465,0.051292,97534.0,97530.0,0.00010396]
[1735071016071,0.051293,97532.0,97530.0,0.00010396]
[1735071016873,0.3638,97536.0,97534.0,0.051291]
[1735071017071,0.00666205,97535.0,97534.0,0.051291]
[1735071017276,0.3608,97548.0,97530.0,0.00010396]
[1735071017573,0.00666261,97547.0,97530.0,0.00010396]
[1735071017781,0.00666261,97547.0,97540.0,0.051288]
[1735071017978,0.00666261,97554.0,97540.0,0.051288]
[1735071018466,0.3608,97550.0,97537.0,0.3608]
[1735071018673,0.00666261,97549.0,97537.0,0.3608]
[1735071019075,0.00666261,97558.0,97537.0,0.3608]
[1735071019278,0.00666261,97558.0,97546.0,0.051285]
[1735071019482,0.05794261,97558.0,97537.0,0.3608]
[1735071019777,0.002,97550.0,97549.0,0.051284]
[1735071020379,0.00665837,97554.0,97549.0,0.051284]
[1735071020681,0.051282,97553.0,97542.0,0.051287]
[1735071020977,0.05129,97538.0,97530.0,0.00010396]
[1735071021184,0.00665837,97537.0,97530.0,0.00010396]
[1735071021368,0.051293,97532.0,97530.0,0.00010396]
[1735071021573,0.00665837,97531.0,97530.0,0.00010396]
[1735071021872,0.051291,97536.0,97530.0,0.00010396]
[1735071022075,0.00665837,97535.0,97530.0,0.00010396]
[1735071022565,0.00665837,97537.0,97530.0,0.00010396]
[1735071022769,0.00665837,97537.0,97531.0,0.051293]
[1735071023177,0.051285,97548.0,97531.0,0.051293]
[1735071023468,0.00665837,97547.0,97531.0,0.051293]
[1735071023670,0.001,97537.0,97531.0,0.051293]
[1735071024968,0.00665837,97537.0,97531.0,0.051293]
[1735071025578,0.051292,97535.0,97531.0,0.051293]
[1735071025771,0.00665837,97534.0,97531.0,0.051293]
[1735071027580,0.051293,97531.0,97530.0,0.00010396]
[1735071027780,0.05795137,97531.0,97530.0,0.00010396]
[1735071029084,0.0599557,97531.0,97530.0,0.00010396]
[1735071030374,0.0599557,97531.0,97522.0,0.051298]
[1735071030375,0.06005867,97531.0,97522.0,0.04973641]
[1735071030684,0.34273434,97529.0,97522.0,0.04973641]
[1735071030879,0.051296,97526.0,97522.0,0.04973641]
[1735071031081,0.0579597,97525.0,97514.0,0.23387505]
[1735071031386,0.0066627,97524.0,97516.0,0.051301]
[1735071032083,0.051302,97515.0,97513.0,0.18257305]
[1735071032287,0.051302,97515.0,97514.0,0.001]
[1735071032585,0.0580568,97515.0,97514.0,0.001]
[1735071033086,0.0580568,97515.0,97513.0,0.18257305]
[1735071033291,0.00665528,97514.0,97513.0,0.18257305]
[1735071034177,0.00665528,97514.0,97500.0,0.10205838]
[1735071034376,0.051308,97504.0,97500.0,0.10153838]
[1735071034571,0.00665528,97503.0,97500.0,0.10153838]
[1735071034778,0.00665528,97503.0,97500.0,0.15284738]
[1735071035287,0.00663557,97503.0,97500.0,0.15284738]
[1735071035583,0.00663557,97502.0,97500.0,0.10553838]
[1735071035779,0.00663557,97510.0,97509.0,0.051305]
[1735071035980,9.952e-05,97515.0,97514.0,0.051302]
[1735071036176,0.00068,97542.0,97514.0,0.051302]
[1735071036177,9.952e-05,97529.0,97528.0,0.051295]
[1735071036381,0.051282,97553.0,97537.0,0.05129]
[1735071036576,0.051282,97553.0,97537.0,0.41209]
[1735071036984,0.051283,97552.0,97537.0,0.41209]
[1735071037182,0.051279,97559.0,97537.0,0.3608]
[1735071037377,0.051279,97559.0,97545.0,0.3608]
[1735071037571,0.051279,97559.0,97548.0,0.051284]
[1735071037883,0.051279,97559.0,97549.0,0.051284]
[1735071038187,0.00153855,97569.0,97554.0,0.3608]
[1735071038379,0.00153855,97569.0,97561.0,0.051277]
[1735071038575,0.05281255,97569.0,97561.0,0.051277]
[1735071038980,0.05281255,97569.0,97562.0,0.051277]
[1735071039381,0.05281255,97569.0,97554.0,0.3608]
[1735071039697,0.05281255,97569.0,97564.0,0.18337129]
[1735071039698,0.00153855,97569.0,97564.0,0.18337129]
[1735071039878,0.00153855,97569.0,97568.0,0.051274]
[1735071041183,0.00453855,97569.0,97564.0,0.0006]
[1735071041381,0.00453855,97569.0,97563.0,0.24453061]
[1735071041579,0.051276,97564.0,97563.0,0.24453061]
[1735071041780,0.05581255,97569.0,97563.0,0.24453061]
[1735071041982,0.00153855,97569.0,97566.0,0.051275]
[1735071042182,0.00453855,97569.0,97566.0,0.051275]
[1735071042783,0.00453855,97569.0,97559.0,0.18351562]
[1735071043088,0.00453855,97569.0,97567.0,0.051274]
[1735071043793,0.00153855,97569.0,97567.0,0.051274]
[1735071044088,0.00553855,97569.0,97562.0,0.24453061]
[1735071044392,0.00553855,97569.0,97567.0,0.18351562]
[1735071044595,0.00153855,97569.0,97567.0,0.18351562]
[1735071044891,0.00353855,97569.0,97567.0,0.18351562]
[1735071045091,0.00353855,97569.0,97561.0,0.23479362]
[1735071045493,0.00553855,97569.0,97561.0,0.23479362]
[1735071046187,0.00553855,97569.0,97562.0,0.051277]
[1735071047585,0.00153855,97569.0,97562.0,0.051277]
[1735071048289,0.00813349,97569.0,97557.0,0.3608]
[1735071048490,0.051279,97558.0,97556.0,0.18351562]
[1735071048795,0.00659494,97557.0,97556.0,0.18351562]
[1735071048988,0.00659494,97557.0,97554.0,0.18351562]
[1735071049188,0.3608,97555.0,97554.0,0.18351562]
[1735071049389,0.36739494,97555.0,97554.0,0.18351562]
[1735071050381,0.051283,97551.0,97538.0,0.05129]
[1735071050598,0.00658615,97550.0,97538.0,0.05129]
[1735071050786,0.051284,97549.0,97538.0,0.05129]
[1735071051091,0.00658615,97548.0,97539.0,0.051289]
[1735071051287,0.00658615,97548.0,97540.0,0.051288]
[1735071052385,0.00659253,97548.0,97540.0,0.051288]
[1735071052691,0.00659253,97548.0,97540.0,0.053288]
[1735071053193,0.00659021,97548.0,97540.0,0.053288]
[1735071054283,0.00659021,97548.0,97540.0,0.054288]
[1735071055099,0.00659021,97548.0,97540.0,0.052288]
[1735071056795,0.00859021,97548.0,97540.0,0.051288]
[1735071058691,0.00859021,97548.0,97541.0,0.051288]
[1735071059190,0.002,97548.0,97543.0,0.3608]
[1735071059395,0.00860932,97548.0,97543.0,0.3608]
[1735071059587,0.00153855,97569.0,97568.0,0.051274]
[1735071059783,0.11833713,97584.0,97568.0,0.3608]
[1735071059985,0.11833713,97584.0,97583.0,0.051266]
[1735071060801,0.11833713,97584.0,97577.0,0.3608]
[1735071060999,0.051262,97591.0,97577.0,0.3608]
[1735071061303,0.006,97584.0,97583.0,0.052266]
[1735071061490,0.006,97584.0,97583.0,0.001]
[1735071061795,0.3668,97584.0,97583.0,0.001]
[1735071062000,0.3668,97584.0,97583.0,0.002]
[1735071062601,0.006,97584.0,97583.0,0.002]
[1735071062994,0.3608,97595.0,97572.0,0.3608]
[1735071063199,0.051267,97582.0,97580.0,0.15142269]
[1735071063394,0.3608,97587.0,97563.0,0.18351562]
[1735071063691,0.051276,97565.0,97563.0,0.18351562]
[1735071063993,0.051276,97565.0,97556.0,0.27092902]
[1735071063994,1.5,97564.0,97559.0,0.24453061]
[1735071064195,0.3608,97569.0,97559.0,0.24453061]
[1735071064394,0.051278,97561.0,97559.0,0.24453061]
[1735071065701,0.051278,97561.0,97545.0,0.18373155]
[1735071066293,0.0947,97568.0,97545.0,0.18373155]
[1735071066497,0.3608,97560.0,97545.0,0.18373155]
[1735071066693,0.051282,97553.0,97545.0,0.18373155]
[1735071066898,0.051282,97553.0,97542.0,0.44001066]
[1735071066899,0.051283,97551.0,97549.0,0.18373155]
[1735071067603,0.051283,97551.0,97549.0,0.00594935]
[1735071067998,0.052283,97551.0,97549.0,0.00594935]
[1735071068209,0.051291,97536.0,97535.0,0.30126121]
[1735071068389,0.051291,97536.0,97531.0,0.24531486]
[1735071068593,0.3608,97543.0,97531.0,0.24531486]
[1735071068794,0.051293,97533.0,97531.0,0.24531486]
[1735071070307,0.003,97533.0,97515.0,0.051302]
[1735071070602,0.051296,97526.0,97515.0,0.051302]
[1735071070900,0.051298,97523.0,97515.0,0.051302]
[1735071071108,0.051302,97515.0,97509.0,0.02748953]
[1735071071606,0.00649981,97514.0,97509.0,0.02748953]
[1735071072109,0.00649981,97514.0,97503.0,0.3608]
[1735071072402,0.00649981,97514.0,97511.0,0.003]
[1735071072705,0.051303,97512.0,97511.0,0.003]
[1735071073000,0.051303,97512.0,97500.0,0.1]
[1735071073001,0.048308,97503.0,97500.0,0.1]
[1735071073205,0.051309,97501.0,97500.0,0.1]
[1735071073505,0.05780734,97501.0,97500.0,0.1]
[1735071074603,0.06080734,97501.0,97500.0,0.1]
[1735071075397,0.06080734,97501.0,97500.0,0.101]
[1735071076103,0.06079403,97501.0,97500.0,0.101]
[1735071076298,0.01148503,97501.0,97480.0,0.00153856]
[1735071076611,0.412119,97483.0,97462.0,0.3608]
[1735071076796,0.41860403,97483.0,97458.0,0.02746955]
[1735071077104,0.051327,97467.0,97457.0,0.051332]
[1735071077302,0.00648503,97466.0,97450.0,0.15142269]
[1735071077498,0.3608,97469.0,97450.0,0.15142269]
[1735071077499,0.05133,97461.0,97450.0,0.15142269]
[1735071077804,9.903e-05,97460.0,97449.0,0.051336]
[1735071078003,9.903e-05,97460.0,97448.0,0.32842465]
[1735071078398,9.903e-05,97460.0,97448.0,0.02716344]
[1735071078597,9.903e-05,97460.0,97447.0,0.051337]
[1735071079000,9.903e-05,97460.0,97449.0,0.009]
[1735071079299,9.903e-05,97460.0,97457.0,0.004]
[1735071080204,0.051315,97490.0,97459.0,0.3608]
[1735071080410,0.051317,97487.0,97475.0,0.051323]
[1735071080801,0.051317,97487.0,97471.0,0.3608]
[1735071081107,0.05132,97480.0,97471.0,0.3608]
[1735071081499,0.051314,97493.0,97479.0,0.3608]
[1735071081704,0.00647121,97492.0,97480.0,0.20274269]
[1735071082203,0.3608,97494.0,97479.0,0.3608]
[1735071082399,0.051317,97486.0,97477.0,0.051322]
[1735071082599,0.00647062,97485.0,97477.0,0.051322]
[1735071082802,0.00645476,97485.0,97477.0,0.051322]
[1735071083007,0.051317,97486.0,97477.0,0.051322]
[1735071083612,0.051317,97486.0,97471.0,0.36136]
[1735071083916,0.051317,97486.0,97478.0,0.051321]
[1735071084109,0.051319,97484.0,97471.0,0.412125]
[1735071084314,0.3608,97494.0,97472.0,0.051324]
[1735071084514,0.051319,97483.0,97472.0,0.051324]
[1735071084808,0.15142269,97490.0,97471.0,0.3608]
[1735071085009,0.3608,97494.0,97460.0,0.00056]
[1735071085010,0.051327,97468.0,97460.0,0.00056]
[1735071085311,0.3608,97476.0,97458.0,0.144632]
[1735071085499,0.3608,97476.0,97458.0,0.0933]
[1735071085706,0.051331,97459.0,97458.0,0.0933]
[1735071086308,0.048331,97459.0,97458.0,0.0933]
[1735071087102,0.048331,97459.0,97458.0,0.0973]
[1735071087411,0.051324,97473.0,97472.0,0.001]
[1735071087607,0.051324,97473.0,97430.0,0.357101]
[1735071087608,0.051337,97448.0,97430.0,0.357101]
[1735071087811,0.051337,97448.0,97414.0,0.00011947]
[1735071087812,0.051349,97425.0,97414.0,0.00011947]
[1735071088110,0.051354,97416.0,97414.0,0.00011947]
[1735071088812,0.044354,97416.0,97414.0,0.00011947]
[1735071089614,0.044354,97416.0,97414.0,0.00211947]
[1735071089804,0.405154,97416.0,97414.0,0.00211947]
[1735071090115,0.405154,97416.0,97389.0,0.3608]
[1735071090116,0.051362,97401.0,97389.0,0.3608]
[1735071090308,0.407162,97401.0,97389.0,0.3608]
[1735071091206,0.70724407,97401.0,97380.0,0.0006]
[1735071091408,0.15142269,97390.0,97365.0,0.0963]
[1735071091604,0.00011937,97389.0,97381.0,0.051372]
[1735071091907,0.051369,97388.0,97376.0,0.3608]
[1735071092103,0.051371,97384.0,97376.0,0.3608]
[1735071092304,0.051371,97384.0,97376.0,0.412175]
[1735071092705,0.051371,97384.0,97376.0,0.051375]
[1735071093100,0.051371,97384.0,97377.0,0.051374]
[1735071093305,0.054371,97384.0,97377.0,0.051374]
[1735071093816,0.003,97384.0,97377.0,0.3608]
[1735071094312,0.3638,97384.0,97368.0,0.3608]
[1735071094511,0.051376,97376.0,97368.0,0.3608]
[1735071094812,0.051376,97374.0,97368.0,0.3608]
[1735071095015,9.802e-05,97373.0,97365.0,0.0963]
[1735071095512,0.051378,97371.0,97365.0,0.0963]
[1735071095901,9.802e-05,97373.0,97370.0,0.3608]
[1735071096103,9.802e-05,97373.0,97372.0,0.051377]
[1735071096512,9.802e-05,97373.0,97370.0,0.3608]
[1735071097103,9.802e-05,97373.0,97370.0,0.412178]
[1735071097308,9.802e-05,97373.0,97370.0,0.3608]
[1735071098608,9.802e-05,97373.0,97370.0,0.3618]
[1735071099215,9.802e-05,97373.0,97370.0,0.3628]
[1735071103717,0.3608,97410.0,97370.0,0.7236]
[1735071103919,0.051362,97401.0,97388.0,0.3608]
[1735071104221,0.3608,97420.0,97389.0,0.051368]
[1735071104515,0.3608,97404.0,97388.0,0.3608]
[1735071104717,0.051367,97392.0,97381.0,0.3608]
[1735071104921,4.341e-05,97393.0,97381.0,0.3608]
[1735071104922,0.05137,97385.0,97381.0,0.3608]
[1735071105113,0.05137,97386.0,97381.0,0.3608]
[1735071105418,0.051368,97389.0,97388.0,0.001]
[1735071105619,0.003,97394.0,97381.0,0.3608]
[1735071105819,0.051371,97385.0,97381.0,0.3608]
[1735071106717,0.051371,97383.0,97371.0,0.051377]
[1735071106914,0.004,97392.0,97365.0,0.45762]
[1735071106915,0.004,97385.0,97365.0,0.45762]
[1735071107115,0.004,97385.0,97365.0,0.0963]
[1735071107116,0.05138,97367.0,97365.0,0.0963]
[1735071107418,0.3608,97378.0,97350.0,0.41278254]
[1735071107619,0.0064568,97377.0,97352.0,0.02101945]
[1735071107919,0.004,97385.0,97376.0,0.3608]
[1735071108307,0.00645747,97386.0,97377.0,0.051375]
[1735071108512,0.00645747,97386.0,97378.0,0.051374]
[1735071109514,0.051369,97387.0,97378.0,0.051374]
[1735071109822,0.051369,97387.0,97374.0,0.1039]
[1735071110014,0.051369,97387.0,97380.0,0.051373]
[1735071110215,0.3608,97397.0,97380.0,0.051373]
[1735071110414,0.00646011,97396.0,97380.0,0.051373]
[1735071110718,0.003,97386.0,97375.0,0.3608]
[1735071111015,0.003,97386.0,97385.0,0.41217]
[1735071111422,0.051367,97391.0,97385.0,0.41217]
[1735071111619,0.00646154,97390.0,97385.0,0.05137]
[1735071111809,0.00646154,97390.0,97380.0,0.001]
[1735071112006,0.051372,97382.0,97380.0,0.001]
[1735071112209,0.00645105,97381.0,97376.0,0.051375]
[1735071112417,0.051372,97382.0,97375.0,0.3608]
[1735071112611,0.00645732,97381.0,97375.0,0.3608]
[1735071112813,0.003,97386.0,97375.0,0.3608]
[1735071113013,0.003,97386.0,97380.0,0.051373]
[1735071113412,0.006,97381.0,97380.0,0.051373]
[1735071113923,0.00645759,97384.0,97382.0,0.051372]
[1735071114118,0.00645759,97385.0,97382.0,0.051372]
[1735071114315,0.00645759,97385.0,97380.0,0.001]
[1735071114616,0.00645759,97385.0,97384.0,0.3608]
[1735071114820,0.005,97386.0,97384.0,0.38006094]
[1735071115407,0.00649623,97388.0,97385.0,0.05137]
[1735071115617,0.00649623,97407.0,97384.0,0.32920994]
[1735071115808,0.00649623,97406.0,97384.0,0.32868994]
[1735071116013,0.3608,97410.0,97384.0,0.32868994]
[1735071116014,0.005,97386.0,97385.0,0.05137]
[1735071116517,0.00649623,97386.0,97385.0,0.05137]
[1735071116911,0.00849623,97386.0,97385.0,0.05137]
[1735071117107,0.01249623,97386.0,97385.0,0.05137]
[1735071117514,0.01249623,97386.0,97384.0,0.32868994]
[1735071117712,0.00649623,97385.0,97384.0,0.32868994]
[1735071118126,0.05737,97386.0,97384.0,0.32868994]
[1735071118315,0.051378,97371.0,97370.0,0.0036]
[1735071118519,0.41870647,97371.0,97370.0,0.0036]
[1735071120022,1.86732847,97371.0,97353.0,0.00056]
[1735071120225,0.051388,97351.0,97350.0,7.454e-05]
[1735071120420,0.05791647,97351.0,97350.0,7.454e-05]
[1735071120622,0.05791647,97351.0,97322.0,0.42617827]
[1735071120812,0.3608,97325.0,97324.0,0.051402]
[1735071121118,0.36732847,97325.0,97324.0,0.051402]
[1735071121621,0.412191,97346.0,97324.0,0.412202]
[1735071121923,0.412191,97346.0,97337.0,0.051395]
[1735071122110,0.11833713,97339.0,97337.0,0.051395]
[1735071123124,0.56079242,97346.0,97337.0,0.051395]
[1735071123125,0.36148,97346.0,97344.0,0.051392]
[1735071123325,0.3608,97346.0,97344.0,0.051392]
[1735071123524,0.3608,97346.0,97336.0,0.15193494]
[1735071123825,0.412191,97346.0,97337.0,0.09406438]
[1735071124025,0.412191,97346.0,97338.0,0.04166838]
[1735071124210,0.3628,97346.0,97339.0,0.04166838]
[1735071124416,0.051393,97343.0,97336.0,0.15193494]
[1735071125723,0.051393,97343.0,97336.0,0.20333094]
[1735071126026,0.3628,97346.0,97337.0,0.04166094]
[1735071126323,0.3608,97346.0,97338.0,0.04166094]
[1735071126524,0.3608,97346.0,97336.0,0.15393494]
[1735071126727,0.3608,97346.0,97336.0,0.15193494]
[1735071126930,0.09014427,97356.0,97337.0,0.04165388]
[1735071127122,0.09014427,97356.0,97346.0,0.15193494]
[1735071127318,0.09014427,97356.0,97353.0,0.051387]
[1735071127524,0.3608,97357.0,97353.0,0.051387]
[1735071128629,0.3608,97357.0,97356.0,0.051386]
[1735071128928,0.09014427,97370.0,97369.0,0.051379]
[1735071129122,0.09014427,97370.0,97369.0,0.412179]
[1735071130026,0.14792142,97381.0,97380.0,0.051373]
[1735071130228,0.14792142,97381.0,97380.0,0.412173]
[1735071130634,0.36152,97402.0,97384.0,0.051371]
[1735071130932,0.3608,97402.0,97384.0,0.051371]
[1735071131125,0.3608,97402.0,97380.0,0.3614]
[1735071131126,0.3608,97402.0,97380.0,0.36192]
[1735071131321,0.3608,97402.0,97391.0,0.3608]
[1735071131627,0.3608,97402.0,97391.0,0.051367]
[1735071131827,0.3608,97402.0,97390.0,0.15193494]
[1735071132017,0.3608,97402.0,97400.0,0.051362]
[1735071132213,0.14792142,97408.0,97407.0,0.051359]
[1735071132417,0.14792142,97408.0,97407.0,0.412159]
[1735071132622,0.3608,97422.0,97412.0,0.051356]
[1735071132824,0.3608,97422.0,97410.0,0.15193494]
[1735071133032,0.3608,97422.0,97421.0,0.051351]
[1735071133529,0.14792142,97432.0,97421.0,0.051351]
[1735071133731,0.008,97422.0,97421.0,0.051351]
[1735071133927,0.0145093,97422.0,97421.0,0.051351]
[1735071134236,0.0215093,97422.0,97421.0,0.052351]
[1735071135219,0.02150179,97422.0,97421.0,0.052351]
[1735071135418,0.015,97422.0,97421.0,0.052351]
[1735071135618,0.009,97422.0,97421.0,0.051351]
[1735071136425,0.001,97422.0,97421.0,0.051351]
[1735071136835,0.001,97422.0,97408.0,0.1195]
[1735071137024,0.413151,97422.0,97408.0,0.1195]
[1735071137325,0.00649503,97421.0,97408.0,0.1195]
[1735071137728,0.051353,97419.0,97400.0,0.051362]
[1735071137921,0.00649503,97418.0,97409.0,0.15193494]
[1735071138119,0.00649503,97421.0,97409.0,0.15193494]
[1735071138926,0.00649503,97421.0,97415.0,0.051354]
[1735071139432,0.00749503,97421.0,97415.0,0.051354]
[1735071139619,0.051354,97417.0,97406.0,0.051359]
[1735071139825,0.00649481,97416.0,97406.0,0.051359]
[1735071140025,0.00649481,97416.0,97409.0,0.002]
[1735071140327,0.00749481,97421.0,97409.0,0.051357]
[1735071140530,0.00749481,97421.0,97410.0,0.15193494]
[1735071141030,0.001,97421.0,97410.0,0.20329194]
[1735071141229,0.00649516,97420.0,97410.0,0.15193494]
[1735071141428,0.00749516,97421.0,97419.0,0.051352]
[1735071141625,0.001,97421.0,97419.0,0.051352]
[1735071141826,0.001,97421.0,97411.0,0.051356]
[1735071142023,0.003,97416.0,97403.0,0.3608]
[1735071142436,0.002,97416.0,97403.0,0.3608]
[1735071142738,0.00850426,97421.0,97419.0,0.051352]
[1735071142739,0.002,97421.0,97419.0,0.051352]
[1735071143620,0.3608,97422.0,97419.0,0.051352]
[1735071143933,0.3608,97422.0,97410.0,0.15193494]
[1735071144132,0.051342,97439.0,97428.0,0.051347]
[1735071144432,0.051342,97439.0,97422.0,0.15193494]
[1735071144637,0.051342,97439.0,97429.0,0.051347]
[1735071144833,0.36234046,97441.0,97430.0,0.051346]
[1735071145040,0.36234046,97441.0,97439.0,0.051342]
[1735071145227,0.00072,97461.0,97457.0,0.051332]
[1735071145537,0.00647703,97462.0,97457.0,0.051332]
[1735071145728,0.3608,97463.0,97450.0,0.051336]
[1735071145931,0.3608,97455.0,97450.0,0.051336]
[1735071147129,0.3608,97455.0,97454.0,0.051334]
[1735071147325,0.007,97461.0,97457.0,0.051332]
[1735071148039,0.007,97461.0,97459.0,0.051331]
[1735071148233,0.051331,97460.0,97448.0,0.051337]
[1735071148434,0.051331,97460.0,97418.0,0.051353]
[1735071148435,0.3608,97450.0,97426.0,0.3608]
[1735071148639,0.3608,97441.0,97418.0,0.3608]
[1735071148835,0.3608,97432.0,97430.0,0.051346]
[1735071150037,0.3628,97432.0,97430.0,0.051346]
[1735071150339,0.002,97432.0,97420.0,0.15193494]
[1735071150528,0.002,97432.0,97424.0,0.05135]
[1735071151433,0.3608,97433.0,97424.0,0.05135]
[1735071151643,0.051349,97425.0,97417.0,0.051353]
[1735071151841,0.3608,97422.0,97417.0,0.051353]
[1735071152036,0.3608,97422.0,97410.0,0.051357]
[1735071152245,0.051352,97421.0,97412.0,0.051356]
[1735071152542,0.3608,97413.0,97403.0,0.05136]
[1735071152739,0.3608,97413.0,97401.0,0.345]
[1735071152740,0.051359,97407.0,97401.0,0.34552]
[1735071152943,0.3608,97413.0,97401.0,0.345]
[1735071153635,0.00644412,97412.0,97401.0,0.345]
[1735071153833,0.00644412,97412.0,97405.0,0.05289874]
[1735071154038,0.3608,97413.0,97412.0,0.051356]
[1735071155338,0.36725272,97413.0,97412.0,0.051356]
[1735071155643,0.002,97413.0,97409.0,0.3608]
[1735071155841,0.004,97413.0,97412.0,0.051356]
[1735071156443,0.004,97413.0,97412.0,0.412156]
[1735071156647,0.002,97413.0,97412.0,0.412156]
[1735071157744,0.00645507,97426.0,97424.0,0.051349]
[1735071158339,0.00645507,97425.0,97424.0,0.051349]
[1735071159149,0.00647097,97425.0,97424.0,0.051349]
[1735071159541,0.00947097,97425.0,97424.0,0.051349]
[1735071159754,0.005,97425.0,97424.0,0.051349]
[1735071160352,0.005,97425.0,97424.0,0.06970215]
[1735071160545,0.00648285,97432.0,97431.0,0.051346]
[1735071160848,0.0064879,97432.0,97431.0,0.051346]
[1735071161753,0.0114879,97432.0,97431.0,0.051346]
[1735071162137,0.0094879,97432.0,97431.0,0.051346]
[1735071162343,0.0144879,97432.0,97431.0,0.051346]
[1735071163150,0.0144879,97432.0,97431.0,0.412146]
[1735071164244,0.0094879,97432.0,97431.0,0.412146]
[1735071164444,0.0074879,97432.0,97431.0,0.412146]
[1735071164645,0.0094879,97432.0,97431.0,0.412146]
[1735071164846,0.0084879,97432.0,97431.0,0.412146]
[1735071165046,0.0094879,97432.0,97431.0,0.051346]
[1735071165251,0.00748384,97432.0,97431.0,0.051346]
[1735071165445,0.00848384,97432.0,97431.0,0.051346]
[1735071165645,0.00948384,97432.0,97431.0,0.051346]
[1735071167558,0.01248384,97432.0,97431.0,0.051346]
[1735071168056,0.00848384,97432.0,97431.0,0.051346]
[1735071168255,0.01348384,97432.0,97431.0,0.051346]
[1735071170853,0.01348384,97432.0,97431.0,0.412146]
[1735071171443,0.01348384,97432.0,97431.0,0.051346]
[1735071172557,0.01348384,97432.0,97424.0,0.41215]
[1735071172752,0.01348384,97432.0,97424.0,0.05135]
[1735071172753,0.3608,97429.0,97424.0,0.05135]
[1735071173055,0.00648384,97428.0,97424.0,0.05135]
[1735071173358,0.00648384,97427.0,97424.0,0.05135]
[1735071173654,0.00648384,97426.0,97424.0,0.05135]
[1735071173955,0.3608,97429.0,97424.0,0.05135]
[1735071173956,0.00648384,97425.0,97424.0,0.05135]
[1735071174259,0.00646463,97425.0,97424.0,0.05135]
[1735071175347,0.00846463,97425.0,97424.0,0.05135]
[1735071176153,0.00746463,97425.0,97424.0,0.05135]
[1735071176960,0.01046463,97425.0,97424.0,0.06855569]
[1735071177658,0.01146463,97425.0,97424.0,0.06855569]
[1735071177949,0.01346463,97425.0,97424.0,0.06855569]
[1735071179771,0.01348075,97425.0,97424.0,0.06855569]
[1735071180369,0.01248858,97425.0,97424.0,0.06855569]